Cogmind - Beta 16.1 @@@ ROGUE MODE // 2026.04.20 @ 21:23:15 Player: ffmpega Result: Destroyed by 01-OYF(R) with Subdweller Machine Gun Performance ------------- Evolutions (0) 0 Regions Visited (3) 600 Robots Destroyed (18) 90 Value Destroyed (451) 451 Prototype IDs (1) 20 Alien Tech Used (0) 0 Bonus (0) 0 TOTAL SCORE: 1161 Bonus ------- None Cogmind --------- Core Integrity 0/250 Matter 300/300 Energy 242/250 System Corruption 1% Temperature Cool (0) Movement Walking (190) Ox1 Location -10/Subcaves Parts ------- > --- POWER (1) -------- Ion Engine > --- PROPULSION (2) --- Aluminum Leg > --- UTILITY (2) ------ Heat Sink Medium Storage Unit > --- WEAPON (2) ------- Small Laser > --- INVENTORY (10) --- Ion Engine Aluminum Leg Aluminum Leg Aluminum Leg Scrap Shield Decoy Drone Bay (16/16) Grenade Launcher Grenade Launcher Peak State ------------ > --- POWER ------------ Ion Engine > --- PROPULSION ------- Aluminum Leg Aluminum Leg > --- UTILITY ---------- Decoy Drone Bay > --- WEAPON ----------- Small Laser Small Laser > --- INVENTORY -------- Aluminum Leg Aluminum Leg Heat Sink [Rating: 19] Favorites ----------- Power Ion Engine Engine Ion Engine Propulsion Aluminum Leg Leg Aluminum Leg Wheel Compact Wheel Utility Heat Sink Device Heat Sink Storage Medium Storage Unit Weapon EM Pulse Gun Energy Gun EM Pulse Gun Ballistic Gun Assault Rifle Launcher Grenade Launcher Build | -11 -10 -10 -10 ------- Run | Yrd Mat Min Sub Slots Evolved . | . . . . Power . | . . . . Propulsion . | . . . . Utility . | . . . . Weapon . | . . . . Parts Attached 23 | 6 . 17 . Power 4 | 1 . 3 . Engine 4 | 1 . 3 . Core . | . . . . Reactor . | . . . . Propulsion 6 | 2 . 4 . Treads . | . . . . Leg 4 | . . 4 . Wheel 2 | 2 . . . Hover . | . . . . Flight . | . . . . Utility 5 | 1 . 4 . Device 3 | . . 3 . Storage 2 | 1 . 1 . Processor . | . . . . Hackware . | . . . . Protection . | . . . . Artifact . | . . . . Weapon 8 | 2 . 6 . Energy Gun 6 | 2 . 4 . Energy Cannon . | . . . . Ballistic Gun 1 | . . 1 . Ballistic Cannon . | . . . . Launcher 1 | . . 1 . Special Weapon . | . . . . Impact Weapon . | . . . . Slashing Weapon . | . . . . Piercing Weapon . | . . . . Special Melee Weapon . | . . . . Unidentified Prototypes 1 | . . 1 . Corrupted Parts 1 | . . 1 . System Corruption 1 | . . 1 . Parts Lost 9 | . . 7 2 Power 2 | . . 2 . Propulsion 3 | . . 2 1 Utility . | . . . . Weapon 4 | . . 3 1 Highest Loss Streak 4 | . . 4 2 To Critical Strikes . | . . . . Average Backups 6 | 2 6 6 8 Power . | . 1 . 1 Propulsion 2 | 1 3 2 3 Utility 1 | . . 1 2 Weapon 2 | . 2 2 2 Tool/Special . | . . . . Unused Backups 11 | . 3 . 8 Power 1 | . . . 1 Propulsion 5 | . 2 . 3 Utility 3 | . . . 3 Weapon 2 | . 1 . 1 Tool/Special . | . . . . Average Slot Usage (%) 95 | . 85 96 96 Engine 13 | . 14 13 14 Leg 23 | . . 26 26 Wheel 3 | . 28 1 . Device 11 | . . 12 14 Storage 14 | . 14 14 14 Energy Gun 17 | . 28 14 25 Ballistic Gun 9 | . . 11 . Peak Build Rating 19 | 6 6 19 9 Average Rating 6 | 4 6 7 8 On Entrance 5 | . 6 6 9 Avg Prop Armor Cover (%) . | . . . . Naked Turns . | . . . . Heaviest Build 21 | 12 12 21 18 Greatest Support 32 | 32 32 20 20 Greatest Overweight (x) 1 | . . 1 . Average Overweight (x) . | . . . . Largest Inventory Capacity 10 | 8 8 10 10 Average Capacity 9 | 7 8 9 10 Most Carried 10 | 6 8 10 10 Average Carried 7 | 2 6 7 9 Final Capacity 10 | 8 8 10 10 Final Carried 10 | 6 7 10 10 Class Distribution -------------------- 77% | Mutant 22% | Scavenger-Mutant Dominant Class ---------------- Mutant | -10/Materials Mutant | -10/Mines Scavenger-Mutant | -10/Subcaves Resources | -11 -10 -10 -10 ----------- Run | Yrd Mat Min Sub Matter Collected 662 | 235 25 402 . Remotely . | . . . . Salvage Created 640 | . 217 370 53 Parts 42 | . 15 23 4 Haulers Intercepted 1 | . 1 . . Recyclers Shooed . | . . . . Parts Field Recycled . | . . . . Retrieved Matter . | . . . . Parts Self-Destructed 6 | . . . 6 Prevented . | . . . . Parts Restored . | . . . . Kills | -11 -10 -10 -10 ------- Run | Yrd Mat Min Sub Combat Hostiles Destroyed 18 | . 6 11 1 Guns 16 | . 4 11 1 AOE 2 | . 2 . . Classes Destroyed 6 | . 3 2 1 Tunneler 1 | . . 1 . Hauler 1 | . 1 . . Swarmer 6 | . 3 3 . Grunt 9 | . 3 6 . Subdweller 1 | . . . 1 Assembled 2 | . . 2 . Best Kill Streak 6 | . 5 6 1 Combat Bots Only 4 | . 4 4 1 Max Kills in Single Turn 3 | . 3 2 1 Gunslinging . | . . . . Exploded 1 | . 1 . . Melee . | . . . . Uniques/NPCs Destroyed . | . . . . Combat | -11 -10 -10 -10 -------- Run | Yrd Mat Min Sub Hostile Shots Fired 108 | . 20 67 21 Missed 41 | . 10 25 6 Hits 67 | . 10 42 15 Melee 5 | . . 5 . Projectile 62 | . 10 37 15 AOE 3 | . . . 3 Damage Taken 1116 | . 86 654 376 Core 258 | . 29 122 107 Absorbed by Shields . | . . . . Core Remaining (%) 100 | 100 . . . Volleys Fired 86 | . 11 62 13 Largest 2 | . 2 2 2 Hottest 80 | . 80 80 80 Shots Fired 148 | . 22 107 19 Gun 147 | . 22 106 19 Cannon . | . . . . Launcher 1 | . . 1 . Special . | . . . . Kinetic 56 | . . 56 . Thermal 19 | . . . 19 Explosive 1 | . . 1 . Electromagnetic 72 | . 22 50 . Robot Hit Streak 9 | . 8 5 9 Robot Miss Streak 6 | . 2 6 3 Penetration Max . | . . . . Secondary Targets 2 | . 1 1 . Max Gunslinging Chain 1 | . 1 1 . Shots Hit Robots 67 | . 16 39 12 Core Hits 36 | . 8 25 3 Critical Kills . | . . . . Critical Parts Destroyed . | . . . . Critical Strikes . | . . . . Melee Attacks . | . . . . Impact . | . . . . Slashing . | . . . . Piercing . | . . . . Sneak Attacks . | . . . . Combat Hostiles . | . . . . Follow-up Attacks . | . . . . Damage Inflicted 1051 | . 340 552 159 Guns 903 | . 213 531 159 Cannons . | . . . . Explosions 123 | . 123 . . Melee . | . . . . Ramming 25 | . 4 21 . Kinetic 283 | . . 283 . Thermal 282 | . 123 . 159 Explosive . | . . . . Electromagnetic 461 | . 213 248 . Impact . | . . . . Slashing . | . . . . Piercing . | . . . . Highest Corruption 1 | . . 1 1 Average Corruption 1 | . . 1 1 Corruption Purged . | . . . . Corruption Blocked . | . . . . Effects 3 | . . 3 . Message Errors 3 | . . 3 . Overload Shots . | . . . . Overflow Damage . | . . . . Projectiles . | . . . . Explosions . | . . . . Melee . | . . . . Knockbacks . | . . . . Impact . | . . . . Kinetic . | . . . . Secondary . | . . . . Self-Inflicted Damage 31 | . 2 29 . Shots 1 | . . 1 . Rammed 1 | . 1 . . Targets Rammed 8 | . 1 7 . Kicked 7 | . . 7 . Crushed . | . . . . Highest Temperature 112 | . 108 112 . Average Temperature 48 | . 39 63 . Received Heat Transfer 222 | . 6 192 24 Siege Activations . | . . . . Martial Activations . | . . . . Shielding Activations . | . . . . Robots Disrupted . | . . . . Combat Hostiles . | . . . . Robots Corrupted . | . . . . Combat Hostiles . | . . . . Parts Fried . | . . . . Impact Corruptions . | . . . . Robots Melted . | . . . . Combat Hostiles . | . . . . Parts Melted . | . . . . Heat Transferred 500 | . 150 . 350 Parts Sabotaged . | . . . . Parts Stolen . | . . . . Parts Stripped . | . . . . Power Chain Reactions 2 | . 2 . . Alert | -11 -10 -10 -10 ------- Run | Yrd Mat Min Sub Maximum Alert Level . | . . . . Low Security (%) 100 | 100 100 100 . Level 1 . | . . . . Level 2 . | . . . . Level 3 . | . . . . Level 4 . | . . . . Level 5 . | . . . . High Security . | . . . . Max Security . | . . . . Peak Influence 150 | . 150 94 . Initial 54 | . . 54 . Average 22 | . 73 17 . Influence Increases 425 | . 190 235 . Destroy 0b10 Robot/C 300 | . 120 180 . Destroy 0b10 Robot/NC 10 | . 5 5 . Destroy Leader 42 | . 22 20 . Disable Machine 15 | . . 15 . Destroy Structure 13 | . 13 . . Lose Combat Pursuer 45 | . 30 15 . Influence Decreases 425 | . 50 375 . Entered New Map 86 | . . 86 . Time Decay 279 | . 50 229 . Lost Part 60 | . . 60 . Squads Dispatched 1 | . 1 . . Investigation . | . . . . Extermination . | . . . . Reinforcement 1 | . 1 . . Assault . | . . . . Garrison . | . . . . Intercept . | . . . . Searches Triggered . | . . . . Construction Impeded . | . . . . Haulers Reinforced . | . . . . Active Scanning Responses . | . . . . Cargo Convoy Interrupts . | . . . . Stealth | -11 -10 -10 -10 --------- Run | Yrd Mat Min Sub Distress Signals 1 | . 1 . . Communications Jammed . | . . . . Distress Signals . | . . . . Times Spotted 33 | . 8 15 10 Peak Tracking Total 8 | . 3 3 8 Tactical Retreats 4 | . 2 2 . Traps | -11 -10 -10 -10 ------- Run | Yrd Mat Min Sub Traps Triggered . | . . . . Indirectly . | . . . . Trap Hack Attempts . | . . . . Triggered . | . . . . Disarmed . | . . . . Reprogrammed . | . . . . Reused . | . . . . Traps Extracted . | . . . . Installed . | . . . . Triggered . | . . . . Machines | -11 -10 -10 -10 ---------- Run | Yrd Mat Min Sub Machines Disabled 1 | . . 1 . Max in Single Turn 1 | . . 1 . Machines Repaired . | . . . . Machines Dismantled . | . . . . Machines Sabotaged . | . . . . Overloaded Fab Kills . | . . . . Hacking | -11 -10 -10 -10 --------- Run | Yrd Mat Min Sub Machines Accessed 1 | . . 1 . Terminals . | . . . . Fabricators . | . . . . Repair Stations . | . . . . Recycling Units . | . . . . Scanalyzers . | . . . . Garrison Access . | . . . . Total Hacks 1 | . . 1 . Successful 1 | . . 1 . Failed . | . . . . Catastrophic . | . . . . Database Lockouts . | . . . . Manual . | . . . . Terminals . | . . . . Fabricators . | . . . . Repair Stations . | . . . . Recycling Units . | . . . . Scanalyzers . | . . . . Garrison Access . | . . . . Terminal Hacks 1 | . . 1 . Open Door 1 | . . 1 . Fabricator Hacks . | . . . . Repair Station Hacks . | . . . . Recycling Unit Hacks . | . . . . Scanalyzer . | . . . . Garrison Access Hacks . | . . . . Unauthorized Hacks . | . . . . Terminals . | . . . . Fabricators . | . . . . Repair Stations . | . . . . Recycling Units . | . . . . Scanalyzers . | . . . . Garrison Access . | . . . . Data Cores Recovered . | . . . . Used . | . . . . Hacking Detections . | . . . . Full Trace Events . | . . . . Feedback Events . | . . . . Feedback Blocked . | . . . . Robot Schematics Acquired . | . . . . Robots Built . | . . . . Authchips . | . . . . Time . | . . . . Total Robot Build Rating . | . . . . Part Schematics Acquired . | . . . . Parts Built . | . . . . Authchips . | . . . . Time . | . . . . Total Part Build Rating . | . . . . Part Studies Acquired . | . . . . Parts Repaired . | . . . . Time . | . . . . Parts Recycled . | . . . . Recycled Matter . | . . . . Retrieved Matter . | . . . . Retrieved Components . | . . . . Parts Scanalyzed . | . . . . Part Schematics Acquired . | . . . . Parts Damaged . | . . . . Bothacking | -11 -10 -10 -10 ------------ Run | Yrd Mat Min Sub Used RIF Installer . | . . . . Robots Hacked . | . . . . Non-combat . | . . . . Combat . | . . . . Robot Hacks Applied . | . . . . Relay Couplers Released . | . . . . Fabnet Peak Effective % . | . . . . Robots Rewired . | . . . . Allies Hacked . | . . . . Hacks Repelled . | . . . . Allies | -11 -10 -10 -10 -------- Run | Yrd Mat Min Sub Total Allies . | . . . . Largest Group . | . . . . Highest-Rated Group . | . . . . Highest-Rated Ally . | . . . . Total Orders . | . . . . Ally Attacks . | . . . . Total Damage . | . . . . Kills . | . . . . Allies Corrupted . | . . . . Allies Melted . | . . . . Intel | -11 -10 -10 -10 ------- Run | Yrd Mat Min Sub Active Infowar (turns) . | . . . . Robot Analysis Total . | . . . . Derelict Logs Recovered 1 | . . . 1 Drone Launches . | . . . . Drone Recoveries . | . . . . Exploration | -11 -10 -10 -10 ------------- Run | Yrd Mat Min Sub Turns Passed 1290 | 53 128 1003 106 Spaces Moved 450 | 40 80 279 51 Core 3 | 3 . . . Treads . | . . . . Legs 325 | . . 274 51 Wheels 122 | 37 80 5 . Hover . | . . . . Flight . | . . . . Fastest Speed 50 | 50 100 100 120 Average Speed 115 | 96 100 121 120 Slowest Speed 190 | 100 100 190 120 Overloaded Moves . | . . . . Propulsion Burnouts . | . . . . Robots Hopped . | . . . . Potential Cave-ins . | . . . . Cave-ins Triggered . | . . . . Exploration Rate (%) 20 | 3 28 45 6 Regions Visited 3 Branch Regions 2 Pre-discovered Areas . | . . . . Known Exits Taken . | . . . . Unknown Exits Taken 3 | 1 1 1 . Scrap Searched . | . . . . Spaces Dug . | . . . . Terrain Destroyed 13 | . 13 . . Melee . | . . . . Projectile . | . . . . AOE 13 | . 13 . . Terrain Rammed . | . . . . Walls Destroyed . | . . . . Machines Disabled . | . . . . Actions | -11 -10 -10 -10 --------- Run | Yrd Mat Min Sub Total 1069 | 51 107 832 79 Wait 453 | . 7 434 12 Move 447 | 39 79 278 51 Hop . | . . . . Pick Up 28 | 6 5 16 1 Fast Attach 13 | 6 . 7 . Attach 6 | . . 6 . Detach 3 | . . 3 . Swap 8 | . . 8 . Drop 17 | . 4 11 2 Fire 86 | . 11 62 13 Melee . | . . . . Ram 1 | . 1 . . Kick 7 | . . 7 . Crush . | . . . . Escape Stasis . | . . . . Rewire . | . . . . Trap . | . . . . Miscellaneous . | . . . . Route ------- -11/Scrapyard -10/Materials -10/Mines -10/Subcaves History --------- Turn | Location | Event 17 | -11/Scrapyard | Discovered new exit (range 16) 54 | -11/Scrapyard | Entered Materials 164 | -10/Materials | Discovered new exit (range 8) 182 | -10/Materials | Entered Mines 240 | -10/Mines | Lost 4 parts (1p1n2w) 307 | -10/Mines | Build established: Mutant 481 | -10/Mines | Excavation squad dispatched 481 | -10/Mines | A large section of the Mines collapsed 731 | -10/Mines | Excavation squad dispatched 987 | -10/Mines | Core integrity fell below 50% 1106 | -10/Mines | Found the Drone Emporium 1115 | -10/Mines | Found Prototype Device 1121 | -10/Mines | Identified Decoy Drone Bay 1174 | -10/Mines | Discovered new exit (range 9) 1185 | -10/Mines | Entered Subcaves 1186 | -10/Subcaves | Approached by a straggling Scientist 1231 | -10/Subcaves | Learned Materials security intel 1269 | -10/Subcaves | Ambushed by swarm of Subdwellers 1282 | -10/Subcaves | Core integrity fell below 20% 1283 | -10/Subcaves | Ambushed by Subdwellers from Twisted Machinery 1291 | -10/Subcaves | Destroyed by 01-OYF(R) with Subdweller Machine Gun Last Messages --------------- 01276_ Sml. Laser destroyed. 01277_ WH-P98(R) emerges from the Twisted Machinery. 01277_ 1Y-PUP(g): "Sorry we're late! Had another grouchy Sub to deal with. Who's the new fellow?" 01278_ JW-DG9(g) destroyed. 01278_ 01-OYF(R) affixes Scrap Shield Fragment to Scrap Shield. 01280_ NK-XKJ(g) destroyed. 01281_ H6-4XY(R) suffers critical hit (Burn). 01281_ H6-4XY(R) destroyed. 01283_ Aluminum Leg destroyed. 01283_ 3I-K35(R) affixes Scrap Shield Fragment to Scrap Shield. 01283_ IN-YSN(R) angrily emerges from the Twisted Machinery. 01285_ Subatomizers dissect the Sub. Machine Gun. 01291_ O5-915(R) suffers critical hit (Burn). Map ----- +----------------------------------------------------+ | ??????????? ????????????????????????????????? | | ???????????#%! #????????????????????????????????? | | ??????????##%& %#????????????????????????????????? | | ??????????#![* #####????????????????????????????? | | ??????????# # ## #????????????????????????????? | | #?????????# ##???????????????????????????? | | ###???????# #???????????????????????????? | | #???????# ## ##???????????????????????????? | | # #???????# ### ##???????????????????????????? | | ? ?????### ##" #???????????????????????????? | | ## ####### #### ###?????????????????????????? | | # # # ## ##??# # #?????????????????????????? | | ## ##???### ##????????????????????????? | | ! #??????# #????????????????????????? | | ## ### ###??????# ##????????????????????????? | | ######?####????????##" ##????????????????????????? | | #?????????????????#### #????????????????????????? | | ??????????????????# ## ##????????????????????????? | | ?????????????????## #????????????????????????? | | ?????????????????# ; ##????????????????????????? | | ?????????????????# ## ##??????????????????????? | | ????????????????##; ; #???#??????????????????? | | ????????????????# ###;#??????????????????? | | ????????????????#; != #??????????????????? | | ???????????????## = [ = ##?????????????????? | | ???????????????# * %@% * R#?????????????????? | | ???????????????# g%[R "#???????????????? | | ???????????????## R&&"!#?????????????? | | ????????????????# R%% % #???????????? | | ????????????????# ## R & % ?????????? | | ????????????????# # ## # # ??????????? | | ????????????????# ########### #? ?????????? | | ????????????????# ??????????? ? ??????????? | | ????????????????# ????????????? ?? ??????????? | | ????????????????# ????????????? # ????????????? | | ????????????????#??????????????? ### ????????????? | | ???????????????????????????????? ???????????????? | | ?????????????????????????????????#???????????????? | | ?????????????????????????????????????????????????? | | ?????????????????????????????????????????????????? | | ?????????????????????????????????????????????????? | | ?????????????????????????????????????????????????? | | ?????????????????????????????????????????????????? | | ?????????????????????????????????????????????????? | | ?????????????????????????????????????????????????? | | ?????????????????????????????????????????????????? | | ?????????????????????????????????????????????????? | | ?????????????????????????????????????????????????? | | ?????????????????????????????????????????????????? | | ?????????????????????????????????????????????????? | +----------------------------------------------------+ Best States ------------- Heat Dissipation 35 Energy Generation 10 Energy Capacity 250 Matter Stores 300 Matter Capacity 300 Sight Range 16 Terrain Scan Density 10 Evasion (%) 55 Item Schematics ----------------- None Robot Schematics ------------------ None Fabricated ------------ Nothing Repaired ---------- Nothing Studied --------- None Alien Tech Used ----------------- None Achievements -------------- None Challenges ------------ None Game ------ Seed SensorTerrainForcewell Manual? 0 Play Time 00:19:43 Cumulative 13.3 hours Start 2026.04.19 @ 01:59:06 End 2026.04.20 @ 21:23:15 Sessions 3 Manual Loads 0 Difficulty Rogue Special Mode None Game No. 21 Rogue 21 Adventurer 0 Explorer 0 Win Type - Total 0 Types 0/0/0/0/0/0/0/0/0/0 Lore% 2 Gallery% 11 Achievement% 9 Wizard Run 0 Options --------- Layout 2 ASCII 0 Keyboard 1 Movement Vi Keybinds 0 Fullscreen 1 Font 24/Smallcaps Map View 50x44 Zoom Use 0% Tactical HUD 1 Map Filters NONE Filters NONE Steam 1 RUN: c334d3a9-05b2-45c2-b633-3c6634927aaa